[Event "Open Nuevo Centro. Jornada 2"]
[Site "Chess.com"]
[Date "2020.06.26"]
[Round "1"]
[White "Alvarez Usina, Joan"]
[Black "García Oviedo, Alejandro"]
[Result "0-1"]
[WhiteElo "872"]
[BlackElo "1819"]
[TimeControl "180+2"]
[EndTime "10:32:01 PDT"]
[Termination "Victoria de alexgarov por abandono"]

1. d4 {[%clk 0:02:54.9]} 1... d5 {[%clk 0:03:00.8]} 2. Bf4 {[%clk 0:02:53]} 2...
Nf6 {[%clk 0:02:58.8]} 3. e3 {[%clk 0:02:51.9]} 3... e6 {[%clk 0:02:59.9]} 4.
Bd3 {[%clk 0:02:50.5]} 4... Bd6 {[%clk 0:03:00.4]} 5. Bxd6 {[%clk 0:02:48.2]}
5... cxd6 {[%clk 0:03:02.3]} 6. Nf3 {[%clk 0:02:44.6]} 6... O-O {[%clk
0:03:02.5]} 7. Ng5 {[%clk 0:02:44.1]} 7... h6 {[%clk 0:02:53.8]} 8. Nh3 {[%clk
0:02:40.3]} 8... e5 {[%clk 0:02:48.8]} 9. dxe5 {[%clk 0:02:37]} 9... dxe5 {[%clk
0:02:50.7]} 10. Qf3 {[%clk 0:02:34.8]} 10... e4 {[%clk 0:02:42.5]} 0

[Event "Open Nuevo Centro. Jornada 2"]
[Site "Chess.com"]
[Date "2020.06.26"]
[Round "1"]
[White "Pardo Ruiz, Carlos"]
[Black "Ahullana Martí, Blai"]
[Result "1-0"]
[WhiteElo "1778"]
[BlackElo "797"]
[TimeControl "180+2"]
[EndTime "10:32:43 PDT"]
[Termination "Victoria de Carlitoscarlsen por jaque mate"]

1. e4 {[%clk 0:03:01.9]} 1... e5 {[%clk 0:03:00.2]} 2. Nf3 {[%clk 0:03:03.3]}
2... Nc6 {[%clk 0:03:00.2]} 3. Bc4 {[%clk 0:03:04.6]} 3... Bc5 {[%clk
0:02:57.8]} 4. c3 {[%clk 0:03:05.7]} 4... Nf6 {[%clk 0:02:58.1]} 5. d4 {[%clk
0:03:07]} 5... exd4 {[%clk 0:02:57.8]} 6. cxd4 {[%clk 0:03:08.9]} 6... Nxd4
{[%clk 0:02:53.3]} 7. Nxd4 {[%clk 0:03:08.4]} 7... Bxd4 {[%clk 0:02:53.5]} 8.
Qxd4 {[%clk 0:03:10.3]} 8... d6 {[%clk 0:02:48.8]} 9. O-O {[%clk 0:03:09.6]}
9... O-O {[%clk 0:02:45.3]} 10. Bg5 {[%clk 0:03:05.5]} 10... h6 {[%clk
0:02:44.6]} 11. Bxf6 {[%clk 0:03:02.1]} 11... gxf6 {[%clk 0:02:44.2]} 12. Qe3
{[%clk 0:03:00]} 12... Be6 {[%clk 0:02:37.1]} 13. Bxe6 {[%clk 0:02:59.1]} 13...
fxe6 {[%clk 0:02:37.4]} 14. Qxh6 {[%clk 0:03:00.6]} 14... d5 {[%clk 0:02:31.5]}
15. exd5 {[%clk 0:02:57.5]} 15... exd5 {[%clk 0:02:33.4]} 16. f4 {[%clk
0:02:53.5]} 16... d4 {[%clk 0:02:32.6]} 17. Rf3 {[%clk 0:02:53.3]} 17... d3
{[%clk 0:02:33]} 18. Rg3+ {[%clk 0:02:53.7]} 18... Kf7 {[%clk 0:02:32.4]} 19.
Rg7+ {[%clk 0:02:52.7]} 19... Ke8 {[%clk 0:02:32]} 20. Qg6+ {[%clk 0:02:52.3]}
20... Rf7 {[%clk 0:02:29.9]} 21. Qxf7# {[%clk 0:02:51.3]} 1

[Event "Open Nuevo Centro. Jornada 2"]
[Site "Chess.com"]
[Date "2020.06.26"]
[Round "1"]
[White "Randazzo, Adrián"]
[Black "Gimenez Saiz, Jose Raul"]
[Result "1-0"]
[WhiteElo "2468"]
[BlackElo "1534"]
[TimeControl "180+2"]
[EndTime "10:32:55 PDT"]
[Termination "Victoria de Nikithebest por abandono"]

1. e4 {[%clk 0:03:01.9]} 1... d5 {[%clk 0:03:00.8]} 2. exd5 {[%clk 0:03:02.7]}
2... Nf6 {[%clk 0:03:02.3]} 3. Nc3 {[%clk 0:03:02.6]} 3... Bg4 {[%clk
0:03:03.3]} 4. Bb5+ {[%clk 0:02:55.5]} 4... Bd7 {[%clk 0:02:52.3]} 5. Bc4 {[%clk
0:02:53.7]} 5... Bg4 {[%clk 0:02:52.5]} 6. f3 {[%clk 0:02:52]} 6... Bf5 {[%clk
0:02:53.4]} 7. d4 {[%clk 0:02:39.5]} 7... e6 {[%clk 0:02:51.9]} 8. dxe6 {[%clk
0:02:38.4]} 8... Nc6 {[%clk 0:02:52.7]} 9. exf7+ {[%clk 0:02:37.7]} 9... Ke7
{[%clk 0:02:53.5]} 10. Nge2 {[%clk 0:02:33.2]} 10... Nb4 {[%clk 0:02:42.7]} 11.
Bb3 {[%clk 0:02:32.3]} 11... Nfd5 {[%clk 0:02:35.4]} 12. Nxd5+ {[%clk
0:02:27.7]} 12... Nxd5 {[%clk 0:02:35.6]} 13. Bg5+ {[%clk 0:02:28.1]} 13... Nf6
{[%clk 0:02:35.1]} 14. Ng3 {[%clk 0:02:28.3]} 14... Be6 {[%clk 0:02:29.9]} 15.
Qe2 {[%clk 0:02:24]} 15... Qd6 {[%clk 0:02:29]} 16. Nf5+ {[%clk 0:02:24.8]} 1

[Event "Open Nuevo Centro. Jornada 2"]
[Site "Chess.com"]
[Date "2020.06.26"]
[Round "1"]
[White "Méndez Giménez , Néstor Emmanuel"]
[Black "Vega Gutiérrez, Sabrina"]
[Result "0-1"]
[WhiteElo "1099"]
[BlackElo "2017"]
[TimeControl "180+2"]
[EndTime "10:32:55 PDT"]
[Termination "Victoria de Valeron87 por jaque mate"]

1. e4 {[%clk 0:03:00.4]} 1... c5 {[%clk 0:03:00.4]} 2. Nf3 {[%clk 0:03:01.1]}
2... Nc6 {[%clk 0:03:01.9]} 3. d4 {[%clk 0:03:01.9]} 3... cxd4 {[%clk
0:03:03.8]} 4. Nxd4 {[%clk 0:03:01.8]} 4... Nf6 {[%clk 0:03:05.3]} 5. Nxc6
{[%clk 0:03:01.9]} 5... bxc6 {[%clk 0:03:05.6]} 6. Nc3 {[%clk 0:03:02.8]} 6...
e5 {[%clk 0:03:06.6]} 7. Bg5 {[%clk 0:03:02.6]} 7... h6 {[%clk 0:03:04.3]} 8.
Bh4 {[%clk 0:03:00.6]} 8... Rb8 {[%clk 0:03:02.6]} 9. Bxf6 {[%clk 0:02:56.7]}
9... Qxf6 {[%clk 0:03:02.3]} 10. b3 {[%clk 0:02:53.8]} 10... Bb4 {[%clk
0:03:02.3]} 11. Qd2 {[%clk 0:02:53.9]} 11... d5 {[%clk 0:02:20.2]} 12. Bc4
{[%clk 0:02:55.8]} 12... d4 {[%clk 0:02:06.1]} 13. Bf1 {[%clk 0:02:57.7]} 13...
Bxc3 {[%clk 0:02:06.6]} 14. Qxc3 {[%clk 0:02:57]} 14... dxc3 {[%clk 0:02:07.3]}
15. O-O-O {[%clk 0:02:57.5]} 15... O-O {[%clk 0:02:07.2]} 16. f3 {[%clk
0:02:55.3]} 16... Qe7 {[%clk 0:02:07.9]} 17. Rd3 {[%clk 0:02:49.8]} 17... Qa3+
{[%clk 0:02:06.6]} 18. Kb1 {[%clk 0:02:48]} 18... Qb2# {[%clk 0:02:07.7]} 0

[Event "Open Nuevo Centro. Jornada 2"]
[Site "Chess.com"]
[Date "2020.06.26"]
[Round "1"]
[White "Rabbani Perez, Ayoub "]
[Black "Donate Peris, Jose Manuel"]
[Result "0-1"]
[WhiteElo "222"]
[BlackElo "1603"]
[TimeControl "180+2"]
[EndTime "10:32:57 PDT"]
[Termination "Victoria de cheryme por jaque mate"]

1. d4 {[%clk 0:02:59.6]} 1... e5 {[%clk 0:03:01.9]} 2. dxe5 {[%clk 0:02:58.4]}
2... Nc6 {[%clk 0:02:54.9]} 3. Na3 {[%clk 0:02:56.3]} 3... Bb4+ {[%clk
0:02:52.8]} 4. c3 {[%clk 0:02:54.4]} 4... Bxa3 {[%clk 0:02:53.4]} 5. bxa3 {[%clk
0:02:53.2]} 5... Nxe5 {[%clk 0:02:53.8]} 6. f3 {[%clk 0:02:51.2]} 6... Nf6
{[%clk 0:02:52]} 7. f4 {[%clk 0:02:48.4]} 7... Nc6 {[%clk 0:02:51.3]} 8. Be3
{[%clk 0:02:45.2]} 8... d6 {[%clk 0:02:51.3]} 9. Bxa7 {[%clk 0:02:44.5]} 9...
Rxa7 {[%clk 0:02:47.8]} 10. a4 {[%clk 0:02:42]} 10... O-O {[%clk 0:02:44.3]} 11.
a5 {[%clk 0:02:38.8]} 11... Rxa5 {[%clk 0:02:41.8]} 12. Qxd6 {[%clk 0:02:35.2]}
12... Qxd6 {[%clk 0:02:39.2]} 13. c4 {[%clk 0:02:31.6]} 13... Qxf4 {[%clk
0:02:38.9]} 14. Nh3 {[%clk 0:02:29.4]} 14... Qxc4 {[%clk 0:02:33.4]} 15. Nf2
{[%clk 0:02:26.5]} 15... Qc3+ {[%clk 0:02:33.1]} 16. Kd1 {[%clk 0:02:22]} 16...
Qxa1+ {[%clk 0:02:33.7]} 17. Kc2 {[%clk 0:02:21.4]} 17... Rxa2+ {[%clk
0:02:34.3]} 18. Kb3 {[%clk 0:02:21]} 18... Be6# {[%clk 0:02:34.9]} 0

[Event "Open Nuevo Centro. Jornada 2"]
[Site "Chess.com"]
[Date "2020.06.26"]
[Round "1"]
[White "Chernikov, Vladimir"]
[Black "Yatseta Fernandez, Marc Kazymyr"]
[Result "1-0"]
[WhiteElo "2303"]
[BlackElo "1450"]
[TimeControl "180+2"]
[EndTime "10:33:16 PDT"]
[Termination "Victoria de isla88 por abandono"]

1. b3 {[%clk 0:03:01.9]} 1... d5 {[%clk 0:02:46.9]} 2. Bb2 {[%clk 0:03:00.6]}
2... Nf6 {[%clk 0:02:48.3]} 3. Nf3 {[%clk 0:02:58.5]} 3... Bf5 {[%clk
0:02:43.9]} 4. d3 {[%clk 0:02:55]} 4... e6 {[%clk 0:02:44.2]} 5. Nbd2 {[%clk
0:02:54.9]} 5... Nc6 {[%clk 0:02:34.5]} 6. g3 {[%clk 0:02:54.3]} 6... Bc5 {[%clk
0:02:27.8]} 7. e3 {[%clk 0:02:49.7]} 7... O-O {[%clk 0:02:27.7]} 8. Bg2 {[%clk
0:02:48.3]} 8... Qd6 {[%clk 0:02:22]} 9. O-O {[%clk 0:02:42.8]} 9... Kh8 {[%clk
0:02:20.7]} 10. d4 {[%clk 0:02:42]} 10... Bb6 {[%clk 0:02:18.6]} 11. c4 {[%clk
0:02:42.9]} 11... dxc4 {[%clk 0:02:07.3]} 12. bxc4 {[%clk 0:02:43.6]} 12... Ba5
{[%clk 0:02:04.3]} 13. Nb3 {[%clk 0:02:40.8]} 13... Rad8 {[%clk 0:01:55]} 14.
Nxa5 {[%clk 0:02:37]} 14... Nxa5 {[%clk 0:01:56.9]} 15. Qa4 {[%clk 0:02:37.5]}
15... Nc6 {[%clk 0:01:49.2]} 16. Ba3 {[%clk 0:02:37.4]} 1

[Event "Open Nuevo Centro. Jornada 2"]
[Site "Chess.com"]
[Date "2020.06.26"]
[Round "1"]
[White "Gerona Maura, Jesus"]
[Black "Torres Biosca, Roberto"]
[Result "1-0"]
[WhiteElo "1757"]
[BlackElo "658"]
[TimeControl "180+2"]
[EndTime "10:33:16 PDT"]
[Termination "Victoria de Retistente por jaque mate"]

1. e4 {[%clk 0:02:47.3]} 1... e5 {[%clk 0:02:59.8]} 2. Nf3 {[%clk 0:02:47.6]}
2... Nf6 {[%clk 0:02:59.8]} 3. Nxe5 {[%clk 0:02:47.5]} 3... d6 {[%clk
0:02:59.1]} 4. Nf3 {[%clk 0:02:47.4]} 4... Nc6 {[%clk 0:02:58.1]} 5. d4 {[%clk
0:02:45.3]} 5... Nxe4 {[%clk 0:02:55.3]} 6. Bd3 {[%clk 0:02:45.1]} 6... Bf5
{[%clk 0:02:50.6]} 7. O-O {[%clk 0:02:41.9]} 7... Be7 {[%clk 0:02:49.8]} 8. Re1
{[%clk 0:02:31.3]} 8... d5 {[%clk 0:02:45.2]} 9. c4 {[%clk 0:02:30.1]} 9... dxc4
{[%clk 0:02:41.4]} 10. Bxe4 {[%clk 0:02:30.5]} 10... Bxe4 {[%clk 0:02:41]} 11.
Rxe4 {[%clk 0:02:30.8]} 11... O-O {[%clk 0:02:36.6]} 12. Nc3 {[%clk 0:02:31.2]}
12... Qd6 {[%clk 0:02:33.6]} 13. Qe2 {[%clk 0:02:30.7]} 13... Rae8 {[%clk
0:02:32.7]} 14. Bf4 {[%clk 0:02:24.9]} 14... Qd7 {[%clk 0:02:28.6]} 15. Re1
{[%clk 0:02:20.4]} 15... Bf6 {[%clk 0:02:21.5]} 16. Rxe8 {[%clk 0:02:18.8]}
16... Rxe8 {[%clk 0:02:22.3]} 17. Qxe8+ {[%clk 0:02:19.1]} 17... Qxe8 {[%clk
0:02:17.8]} 18. Rxe8# {[%clk 0:02:19.1]} 1

[Event "Open Nuevo Centro. Jornada 2"]
[Site "Chess.com"]
[Date "2020.06.26"]
[Round "1"]
[White "Sanchez Saez, Francisco"]
[Black "Albuixech Sanz, Jorge"]
[Result "1-0"]
[WhiteElo "2286"]
[BlackElo "1367"]
[TimeControl "180+2"]
[EndTime "10:33:50 PDT"]
[Termination "Victoria de Pacman1995 por abandono"]

1. e4 {[%clk 0:03:01.5]} 1... c5 {[%clk 0:02:59.7]} 2. d4 {[%clk 0:03:01.7]}
2... cxd4 {[%clk 0:02:58.5]} 3. c3 {[%clk 0:03:02.4]} 3... d3 {[%clk 0:02:58]}
4. Bxd3 {[%clk 0:03:02.8]} 4... d6 {[%clk 0:02:58]} 5. h3 {[%clk 0:03:03.2]}
5... Nf6 {[%clk 0:02:58.8]} 6. Nf3 {[%clk 0:03:04.3]} 6... g6 {[%clk 0:02:58.5]}
7. O-O {[%clk 0:03:05.3]} 7... Bg7 {[%clk 0:02:59.5]} 8. c4 {[%clk 0:03:06.7]}
8... a6 {[%clk 0:03:00.5]} 9. Nc3 {[%clk 0:03:07.9]} 9... Nc6 {[%clk 0:02:48.3]}
10. Be3 {[%clk 0:03:08.5]} 10... O-O {[%clk 0:02:47.7]} 11. Rc1 {[%clk 0:03:08]}
11... b6 {[%clk 0:02:44.7]} 12. Qe2 {[%clk 0:03:07.4]} 12... Bb7 {[%clk
0:02:45.2]} 13. Rfd1 {[%clk 0:03:07.7]} 13... Qc7 {[%clk 0:02:40.2]} 14. Nd5
{[%clk 0:03:06.7]} 14... Nxd5 {[%clk 0:02:39.7]} 15. cxd5 {[%clk 0:03:06.9]}
15... Rac8 {[%clk 0:02:00.7]} 16. dxc6 {[%clk 0:02:57.6]} 16... Ba8 {[%clk
0:02:00.8]} 17. Bd4 {[%clk 0:02:57.3]} 17... e5 {[%clk 0:01:58.1]} 18. Be3
{[%clk 0:02:52.7]} 18... b5 {[%clk 0:01:54.8]} 19. a4 {[%clk 0:02:52.5]} 19...
Bxc6 {[%clk 0:01:45.6]} 20. axb5 {[%clk 0:02:53]} 20... axb5 {[%clk 0:01:47.1]}
21. Bxb5 {[%clk 0:02:50]} 21... Qb7 {[%clk 0:01:48.4]} 22. Ba6 {[%clk 0:02:45]}
1

[Event "Open Nuevo Centro. Jornada 2"]
[Site "Chess.com"]
[Date "2020.06.26"]
[Round "1"]
[White "Ainsa Jimenez, Lucas"]
[Black "Borissov, Julián"]
[Result "0-1"]
[WhiteElo "916"]
[BlackElo "1840"]
[TimeControl "180+2"]
[EndTime "10:33:52 PDT"]
[Termination "Victoria de julianborisov por jaque mate"]

1. e4 {[%clk 0:03:00.7]} 1... e5 {[%clk 0:02:59.1]} 2. Nf3 {[%clk 0:03:01]} 2...
Nc6 {[%clk 0:02:59.1]} 3. Bc4 {[%clk 0:03:00.7]} 3... Nf6 {[%clk 0:02:57.6]} 4.
Ng5 {[%clk 0:02:59.4]} 4... d5 {[%clk 0:02:56.7]} 5. Nxf7 {[%clk 0:02:59.4]}
5... Kxf7 {[%clk 0:02:56.1]} 6. exd5 {[%clk 0:02:59.1]} 6... Na5 {[%clk
0:02:52.5]} 7. Bb5 {[%clk 0:02:43.9]} 7... Bg4 {[%clk 0:02:41.6]} 8. f3 {[%clk
0:02:42.9]} 8... Qxd5 {[%clk 0:02:36.4]} 9. Nc3 {[%clk 0:02:26.1]} 9... Qd4
{[%clk 0:02:28.2]} 10. fxg4 {[%clk 0:02:18.9]} 10... Bc5 {[%clk 0:02:21.6]} 11.
Rf1 {[%clk 0:01:57.2]} 11... Ke7 {[%clk 0:02:11.4]} 12. Be2 {[%clk 0:01:54.7]}
12... Nc4 {[%clk 0:01:59.3]} 13. Rf2 {[%clk 0:01:39.9]} 13... Qxf2# {[%clk
0:01:58.4]} 0

[Event "Open Nuevo Centro. Jornada 2"]
[Site "Chess.com"]
[Date "2020.06.26"]
[Round "1"]
[White "Rojo Everss, Noel"]
[Black "Cayon Pelaez, Pablo"]
[Result "0-1"]
[WhiteElo "796"]
[BlackElo "1775"]
[TimeControl "180+2"]
[EndTime "10:34:22 PDT"]
[Termination "Victoria de Ataquedefinitivo por jaque mate"]

1. e4 {[%clk 0:02:59.3]} 1... e5 {[%clk 0:03:00.5]} 2. Nf3 {[%clk 0:02:57.8]}
2... Nc6 {[%clk 0:03:01.4]} 3. d4 {[%clk 0:02:55.8]} 3... exd4 {[%clk
0:03:02.1]} 4. Bg5 {[%clk 0:02:55.5]} 4... Be7 {[%clk 0:02:59.9]} 5. Bb5 {[%clk
0:02:48.2]} 5... Bxg5 {[%clk 0:02:58.5]} 6. Nxg5 {[%clk 0:02:48.3]} 6... Qxg5
{[%clk 0:03:00.4]} 7. Bxc6 {[%clk 0:02:47]} 7... dxc6 {[%clk 0:02:57.5]} 8. f4
{[%clk 0:02:45.2]} 8... Qxg2 {[%clk 0:02:54.7]} 9. Nd2 {[%clk 0:02:38.7]} 9...
Qxh1+ {[%clk 0:02:54]} 10. Nf1 {[%clk 0:02:38.8]} 10... Qxe4+ {[%clk 0:02:52.6]}
11. Ne3 {[%clk 0:02:34.7]} 11... Qxe3+ {[%clk 0:02:51.6]} 12. Qe2 {[%clk
0:02:34.1]} 12... Qxe2+ {[%clk 0:02:49.5]} 13. Kxe2 {[%clk 0:02:34.4]} 13... Nf6
{[%clk 0:02:51.1]} 14. Re1 {[%clk 0:02:34.5]} 14... O-O {[%clk 0:02:52.1]} 15.
Rg1 {[%clk 0:02:32.8]} 15... Re8+ {[%clk 0:02:52.8]} 16. Kf3 {[%clk 0:02:33]}
16... Bg4+ {[%clk 0:02:52.5]} 17. Kf2 {[%clk 0:02:30.9]} 17... Re2+ {[%clk
0:02:51.8]} 18. Kg3 {[%clk 0:02:30.9]} 18... h5 {[%clk 0:02:47.6]} 19. Kh4
{[%clk 0:02:30.2]} 19... Rxh2+ {[%clk 0:02:45.6]} 20. Kg3 {[%clk 0:02:28.4]}
20... Re2 {[%clk 0:02:35.2]} 21. Rg2 {[%clk 0:02:25.1]} 21... Ne4+ {[%clk
0:02:25.6]} 22. Kh2 {[%clk 0:02:22.5]} 22... Rxg2+ {[%clk 0:02:24.4]} 23. Kxg2
{[%clk 0:02:22.1]} 23... Re8 {[%clk 0:02:24.6]} 24. Kh2 {[%clk 0:02:17.5]} 24...
c5 {[%clk 0:02:23.7]} 25. c4 {[%clk 0:02:13.2]} 25... Nf6 {[%clk 0:02:24.3]} 26.
f5 {[%clk 0:02:12.1]} 26... d3 {[%clk 0:02:24.7]} 27. Kg2 {[%clk 0:02:09.6]}
27... d2 {[%clk 0:02:25.7]} 28. b4 {[%clk 0:02:04.3]} 28... d1=Q {[%clk
0:02:25.4]} 29. bxc5 {[%clk 0:02:03.5]} 29... Qf3+ {[%clk 0:02:24.6]} 30. Kh2
{[%clk 0:02:03.2]} 30... Re2+ {[%clk 0:02:24.8]} 31. Kg1 {[%clk 0:02:02.7]}
31... Qg2# {[%clk 0:02:25]} 0

[Event "Open Nuevo Centro. Jornada 2"]
[Site "Chess.com"]
[Date "2020.06.26"]
[Round "1"]
[White "Martínez Cuenca, Adrián "]
[Black "Salvador Buiza, Victor"]
[Result "0-1"]
[WhiteElo "602"]
[BlackElo "1746"]
[TimeControl "180+2"]
[EndTime "10:34:31 PDT"]
[Termination "Victoria de TERROROSCURO666 por jaque mate"]

1. e4 {[%clk 0:03:01.8]} 1... e5 {[%clk 0:03:00.6]} 2. Nf3 {[%clk 0:02:55.4]}
2... Nc6 {[%clk 0:03:01.6]} 3. Nc3 {[%clk 0:02:53.2]} 3... Bc5 {[%clk
0:03:01.9]} 4. g3 {[%clk 0:02:47.3]} 4... Nge7 {[%clk 0:03:00.6]} 5. Bg2 {[%clk
0:02:42.1]} 5... O-O {[%clk 0:03:01.1]} 6. O-O {[%clk 0:02:40.3]} 6... d6 {[%clk
0:03:01.9]} 7. Ng5 {[%clk 0:02:25.4]} 7... h6 {[%clk 0:02:54.6]} 8. Nf3 {[%clk
0:02:20.7]} 8... f5 {[%clk 0:02:54.7]} 9. g4 {[%clk 0:02:18.6]} 9... fxg4 {[%clk
0:02:49.9]} 10. Nh4 {[%clk 0:02:11.9]} 10... Qe8 {[%clk 0:02:24.1]} 11. Nf5
{[%clk 0:02:13.8]} 11... Nxf5 {[%clk 0:02:23.3]} 12. exf5 {[%clk 0:02:13.8]}
12... Bxf5 {[%clk 0:02:23.5]} 13. h3 {[%clk 0:02:06.6]} 13... gxh3 {[%clk
0:02:21.5]} 14. Bxh3 {[%clk 0:02:06.6]} 14... Bxh3 {[%clk 0:02:21.9]} 15. Kh2
{[%clk 0:02:05.7]} 15... Bxf1 {[%clk 0:02:22]} 16. Qxf1 {[%clk 0:02:05.5]} 16...
Qh5+ {[%clk 0:02:22.9]} 17. Kg1 {[%clk 0:02:05.2]} 17... Qg4+ {[%clk 0:02:23.4]}
18. Qg2 {[%clk 0:02:05.4]} 18... Bxf2+ {[%clk 0:02:23.4]} 19. Kh1 {[%clk
0:02:00.4]} 19... Qh4+ {[%clk 0:02:13.7]} 20. Qh2 {[%clk 0:02:00.3]} 20... Qg4
{[%clk 0:01:54.4]} 21. Qxf2 {[%clk 0:01:52.8]} 21... Rxf2 {[%clk 0:01:54.1]} 22.
d3 {[%clk 0:01:47.2]} 22... Qg2# {[%clk 0:01:53]} 0

[Event "Open Nuevo Centro. Jornada 2"]
[Site "Chess.com"]
[Date "2020.06.26"]
[Round "1"]
[White "Donate Moreno, Silvia"]
[Black "Valverde Alcaide, Miguel Alejandro"]
[Result "1-0"]
[WhiteElo "1780"]
[BlackElo "871"]
[TimeControl "180+2"]
[EndTime "10:34:34 PDT"]
[Termination "Victoria de 2camarones por jaque mate"]

1. e4 {[%clk 0:03:01.9]} 1... e5 {[%clk 0:02:59.6]} 2. Nf3 {[%clk 0:03:02.6]}
2... Nc6 {[%clk 0:02:58.8]} 3. Bb5 {[%clk 0:03:02.9]} 3... Bc5 {[%clk
0:02:50.3]} 4. O-O {[%clk 0:02:58]} 4... Qe7 {[%clk 0:02:45.2]} 5. c3 {[%clk
0:02:53]} 5... a6 {[%clk 0:02:45.3]} 6. Ba4 {[%clk 0:02:53.4]} 6... b5 {[%clk
0:02:42.4]} 7. Bc2 {[%clk 0:02:53.7]} 7... d6 {[%clk 0:02:28.1]} 8. d4 {[%clk
0:02:53.6]} 8... exd4 {[%clk 0:02:25.3]} 9. cxd4 {[%clk 0:02:53.9]} 9... Bb4
{[%clk 0:02:07.7]} 10. a3 {[%clk 0:02:29.8]} 10... Ba5 {[%clk 0:02:06.1]} 11. a4
{[%clk 0:02:27]} 11... b4 {[%clk 0:01:59]} 12. Nbd2 {[%clk 0:02:27.1]} 12... Nf6
{[%clk 0:01:51.3]} 13. Nc4 {[%clk 0:02:18.1]} 13... Bb6 {[%clk 0:01:46.2]} 14.
Nxb6 {[%clk 0:02:17.9]} 14... cxb6 {[%clk 0:01:46.4]} 15. Re1 {[%clk 0:02:13.7]}
15... O-O {[%clk 0:01:40.8]} 16. e5 {[%clk 0:02:12.7]} 16... dxe5 {[%clk
0:01:38.5]} 17. dxe5 {[%clk 0:02:09.8]} 17... Qd7 {[%clk 0:01:35.5]} 18. exf6
{[%clk 0:02:09.5]} 18... gxf6 {[%clk 0:01:31.2]} 19. Bh6 {[%clk 0:02:03.4]}
19... Qxd1 {[%clk 0:01:31]} 20. Raxd1 {[%clk 0:02:03.6]} 20... Rd8 {[%clk
0:01:29.9]} 21. Rxd8+ {[%clk 0:02:03.1]} 21... Nxd8 {[%clk 0:01:29.5]} 22. Re8#
{[%clk 0:02:04.5]} 1

[Event "Open Nuevo Centro. Jornada 2"]
[Site "Chess.com"]
[Date "2020.06.26"]
[Round "1"]
[White "URSARIU, NIKOLAS VICTOR"]
[Black "Lloret Ramis, Juan José"]
[Result "0-1"]
[WhiteElo "1061"]
[BlackElo "1973"]
[TimeControl "180+2"]
[EndTime "10:34:47 PDT"]
[Termination "Victoria de Amiplim por jaque mate"]

1. e4 {[%clk 0:02:56]} 1... e6 {[%clk 0:03:00.1]} 2. Nf3 {[%clk 0:02:54.8]} 2...
d5 {[%clk 0:02:59.6]} 3. exd5 {[%clk 0:02:53.8]} 3... exd5 {[%clk 0:03:01.1]} 4.
d4 {[%clk 0:02:51.3]} 4... Nc6 {[%clk 0:03:02.2]} 5. Be2 {[%clk 0:02:50.6]} 5...
Bd6 {[%clk 0:03:01.9]} 6. Bd2 {[%clk 0:02:45]} 6... Nge7 {[%clk 0:03:02.5]} 7.
Nc3 {[%clk 0:02:38.5]} 7... a6 {[%clk 0:03:01.7]} 8. O-O {[%clk 0:02:28.9]} 8...
O-O {[%clk 0:03:01.4]} 9. Bd3 {[%clk 0:02:21.1]} 9... Bf5 {[%clk 0:02:52.1]} 10.
Be2 {[%clk 0:02:17.1]} 10... Qd7 {[%clk 0:02:45.4]} 11. Re1 {[%clk 0:02:07.9]}
11... Rae8 {[%clk 0:02:44.8]} 12. Bg5 {[%clk 0:01:58.8]} 12... f6 {[%clk
0:02:43.2]} 13. Bd2 {[%clk 0:01:57.7]} 13... Be6 {[%clk 0:02:38.6]} 14. Bd3
{[%clk 0:01:49.2]} 14... Bg4 {[%clk 0:02:24.8]} 15. h3 {[%clk 0:01:41.4]} 15...
Bxf3 {[%clk 0:02:00.8]} 16. Qxf3 {[%clk 0:01:43.3]} 16... Nxd4 {[%clk
0:02:01.4]} 17. Qd1 {[%clk 0:01:45.2]} 17... c6 {[%clk 0:01:57.7]} 18. Qf3
{[%clk 0:01:47.1]} 18... Nxf3+ {[%clk 0:01:57.5]} 19. gxf3 {[%clk 0:01:38.8]}
19... Qxh3 {[%clk 0:01:56.9]} 20. Ne2 {[%clk 0:01:31.9]} 20... Bh2+ {[%clk
0:01:51.2]} 21. Kh1 {[%clk 0:01:30.9]} 21... Bg3+ {[%clk 0:01:52.6]} 22. Kg1
{[%clk 0:01:31]} 22... Qh2+ {[%clk 0:01:54.1]} 23. Kf1 {[%clk 0:01:30.2]} 23...
Qxf2# {[%clk 0:01:55.5]} 0

[Event "Open Nuevo Centro. Jornada 2"]
[Site "Chess.com"]
[Date "2020.06.26"]
[Round "1"]
[White "Silva Rodriguez, Fernando"]
[Black "Ulla Centelles, Llorens"]
[Result "1-0"]
[WhiteElo "2502"]
[BlackElo "1580"]
[TimeControl "180+2"]
[EndTime "10:34:50 PDT"]
[Termination "Victoria de HarnFer por jaque mate"]

1. d4 {[%clk 0:03:01.9]} 1... d5 {[%clk 0:02:59.7]} 2. Nc3 {[%clk 0:03:03.3]}
2... c6 {[%clk 0:02:59.7]} 3. Bf4 {[%clk 0:03:04.3]} 3... e6 {[%clk 0:03:00.2]}
4. e4 {[%clk 0:03:04.7]} 4... Nf6 {[%clk 0:02:59.9]} 5. e5 {[%clk 0:02:41.1]}
5... Nfd7 {[%clk 0:03:00.7]} 6. Nf3 {[%clk 0:02:41]} 6... Be7 {[%clk 0:02:57.1]}
7. Bd3 {[%clk 0:02:40.9]} 7... h6 {[%clk 0:02:55.9]} 8. O-O {[%clk 0:02:41.4]}
8... O-O {[%clk 0:02:56.2]} 9. Qd2 {[%clk 0:02:40.8]} 9... Na6 {[%clk
0:02:53.3]} 10. a3 {[%clk 0:02:38.7]} 10... c5 {[%clk 0:02:53.9]} 11. Rfe1
{[%clk 0:02:25.3]} 11... c4 {[%clk 0:02:52.5]} 12. Bf1 {[%clk 0:02:26]} 12...
Qb6 {[%clk 0:02:44.8]} 13. Reb1 {[%clk 0:02:19.7]} 13... Qc7 {[%clk 0:02:31.4]}
14. b3 {[%clk 0:02:20.5]} 14... Nb6 {[%clk 0:02:31]} 15. Nb5 {[%clk 0:02:15.2]}
15... Qd8 {[%clk 0:02:29.9]} 16. Nd6 {[%clk 0:02:12.7]} 16... Bd7 {[%clk
0:02:26]} 17. bxc4 {[%clk 0:02:13.2]} 17... dxc4 {[%clk 0:02:23.7]} 18. Nxc4
{[%clk 0:02:11.8]} 18... Nd5 {[%clk 0:02:24.3]} 19. Bd3 {[%clk 0:02:05.7]} 19...
Nxf4 {[%clk 0:02:22.7]} 20. Qxf4 {[%clk 0:02:07.6]} 20... Bc6 {[%clk 0:02:20.2]}
21. Ncd2 {[%clk 0:01:51]} 21... Qd5 {[%clk 0:02:20.7]} 22. c4 {[%clk 0:01:50.1]}
22... Qd8 {[%clk 0:02:16.7]} 23. Ne4 {[%clk 0:01:49.3]} 23... Bxe4 {[%clk
0:02:03.4]} 24. Qxe4 {[%clk 0:01:51.2]} 24... f5 {[%clk 0:02:03.3]} 25. exf6
{[%clk 0:01:51.6]} 25... Rxf6 {[%clk 0:02:04]} 26. Ne5 {[%clk 0:01:49.7]} 26...
Qa5 {[%clk 0:01:52.3]} 27. Qh7+ {[%clk 0:01:49.2]} 27... Kf8 {[%clk 0:01:52.1]}
28. Qh8# {[%clk 0:01:51.1]} 1